[Event "*** SCC Grand Prix: Titled Tuesday Blitz"]
[Site "Chess.com"]
[Date "2020.06.09"]
[Round "4"]
[White "Aygehovit1992"]
[Black "GM_LOADING"]
[Result "1-0"]
[WhiteElo "2693"]
[BlackElo "2490"]
[TimeControl "180+1"]
[EndTime "9:38:54 PDT"]
[Termination "Aygehovit1992 won by resignation"]

1. e4 {[%clk 0:03:00.9]} 1... e5 {[%clk 0:03:00.1]} 2. Nf3 {[%clk 0:02:59.6]}
2... Nc6 {[%clk 0:03:00.7]} 3. Bb5 {[%clk 0:02:59.4]} 3... g6 {[%clk 0:03:01]}
4. d4 {[%clk 0:02:58.2]} 4... exd4 {[%clk 0:03:01.5]} 5. Bg5 {[%clk 0:02:54.2]}
5... Be7 {[%clk 0:03:01.8]} 6. Bxe7 {[%clk 0:02:54.4]} 6... Qxe7 {[%clk
0:03:02.7]} 7. Bxc6 {[%clk 0:02:54.8]} 7... dxc6 {[%clk 0:03:03.6]} 8. Qxd4
{[%clk 0:02:55.3]} 8... Nf6 {[%clk 0:03:04.3]} 9. Nc3 {[%clk 0:02:55.3]} 9... c5
{[%clk 0:03:01]} 10. Qe3 {[%clk 0:02:54]} 10... Bg4 {[%clk 0:03:00.5]} 11. O-O-O
{[%clk 0:02:52.3]} 11... O-O {[%clk 0:02:50.6]} 12. e5 {[%clk 0:02:51.2]} 12...
Bxf3 {[%clk 0:02:16.7]} 13. gxf3 {[%clk 0:02:49.5]} 13... Nh5 {[%clk 0:02:11.5]}
14. Nd5 {[%clk 0:02:48.6]} 14... Qh4 {[%clk 0:02:10.1]} 15. Nxc7 {[%clk
0:02:43.7]} 15... Rac8 {[%clk 0:02:08.6]} 16. Nd5 {[%clk 0:02:42.5]} 16... Rfe8
{[%clk 0:02:07.4]} 17. Kb1 {[%clk 0:02:39.5]} 17... b6 {[%clk 0:02:00.7]} 18. f4
{[%clk 0:02:32.5]} 18... Rcd8 {[%clk 0:01:58.6]} 19. Rd2 {[%clk 0:02:12.1]}
19... Rd7 {[%clk 0:01:29.1]} 20. b3 {[%clk 0:02:08.5]} 20... c4 {[%clk
0:01:12.1]} 21. bxc4 {[%clk 0:02:07.1]} 21... Rdd8 {[%clk 0:01:04.8]} 22. Rd4
{[%clk 0:01:47.8]} 22... Qg4 {[%clk 0:00:55.6]} 23. h3 {[%clk 0:01:39]} 23...
Qc8 {[%clk 0:00:24.4]} 24. Rhd1 {[%clk 0:01:37.2]} 24... Kh8 {[%clk 0:00:21.4]}
25. R1d3 {[%clk 0:01:26.6]} 25... Ng7 {[%clk 0:00:20.5]} 26. Nf6 {[%clk
0:01:07.5]} 26... Nf5 {[%clk 0:00:14.5]} 27. Rxd8 {[%clk 0:01:07.2]} 27... Rxd8
{[%clk 0:00:15.4]} 28. Rxd8+ {[%clk 0:01:06.3]} 28... Qxd8 {[%clk 0:00:15.1]}
29. Qd3 {[%clk 0:01:06.9]} 29... Qe7 {[%clk 0:00:15.2]} 30. a3 {[%clk
0:01:02.3]} 30... Kg7 {[%clk 0:00:14.1]} 31. Ka2 {[%clk 0:01:00.8]} 31... Qc5
{[%clk 0:00:11.9]} 32. Ne4 {[%clk 0:00:50.9]} 32... Qc7 {[%clk 0:00:10]} 33. Nd6
{[%clk 0:00:41]} 33... Ne7 {[%clk 0:00:10.2]} 34. Ne8+ {[%clk 0:00:40.8]} 1-0

[Event "*** SCC Grand Prix: Titled Tuesday Blitz"]
[Site "Chess.com"]
[Date "2020.06.09"]
[Round "4"]
[White "g3god"]
[Black "moro182"]
[Result "1-0"]
[WhiteElo "2885"]
[BlackElo "2653"]
[TimeControl "180+1"]
[EndTime "9:38:58 PDT"]
[Termination "g3god won on time"]

1. e4 {[%clk 0:02:58.2]} 1... e5 {[%clk 0:03:00.2]} 2. Nf3 {[%clk 0:02:57.9]}
2... Nc6 {[%clk 0:03:00.8]} 3. Bc4 {[%clk 0:02:57]} 3... Bc5 {[%clk 0:03:00.4]}
4. c3 {[%clk 0:02:55.9]} 4... Nf6 {[%clk 0:03:00.6]} 5. d3 {[%clk 0:02:56.2]}
5... d6 {[%clk 0:03:00.9]} 6. O-O {[%clk 0:02:56.1]} 6... a6 {[%clk 0:03:01.5]}
7. a4 {[%clk 0:02:52.8]} 7... Ba7 {[%clk 0:03:00.5]} 8. Nbd2 {[%clk 0:02:49.9]}
8... h6 {[%clk 0:03:00.8]} 9. b4 {[%clk 0:02:46.7]} 9... O-O {[%clk 0:02:43.1]}
10. Bb3 {[%clk 0:02:43]} 10... Ne7 {[%clk 0:02:41.9]} 11. Re1 {[%clk 0:02:42]}
11... Ng6 {[%clk 0:02:37.5]} 12. Nf1 {[%clk 0:02:41.7]} 12... Be6 {[%clk
0:02:34.9]} 13. Bc2 {[%clk 0:02:38.6]} 13... a5 {[%clk 0:02:28]} 14. b5 {[%clk
0:02:35]} 14... d5 {[%clk 0:02:05.6]} 15. exd5 {[%clk 0:02:06.5]} 15... Nxd5
{[%clk 0:02:06.5]} 16. Bd2 {[%clk 0:02:06.4]} 16... Ndf4 {[%clk 0:01:47.5]} 17.
Be3 {[%clk 0:01:58.7]} 17... Bxe3 {[%clk 0:01:38.8]} 18. fxe3 {[%clk 0:01:47.4]}
18... Nd5 {[%clk 0:01:36.4]} 19. Qd2 {[%clk 0:01:46.3]} 19... f5 {[%clk
0:01:12.7]} 20. Ng3 {[%clk 0:01:42]} 20... Qd7 {[%clk 0:00:51.8]} 21. Rf1 {[%clk
0:01:32.9]} 21... Rad8 {[%clk 0:00:48.7]} 22. e4 {[%clk 0:01:27.8]} 22... fxe4
{[%clk 0:00:43.7]} 23. Nxe4 {[%clk 0:01:27.2]} 23... b6 {[%clk 0:00:35]} 24.
Rae1 {[%clk 0:01:26.7]} 24... Ndf4 {[%clk 0:00:34.9]} 25. d4 {[%clk 0:01:26.6]}
25... Bf5 {[%clk 0:00:19.9]} 26. Nxe5 {[%clk 0:01:22]} 26... Nxe5 {[%clk
0:00:19.6]} 27. Rxf4 {[%clk 0:01:21.7]} 27... Ng6 {[%clk 0:00:17.4]} 28. Rf2
{[%clk 0:01:17.4]} 28... Rde8 {[%clk 0:00:17.4]} 29. Bb3+ {[%clk 0:01:09.5]}
29... Kh8 {[%clk 0:00:16.7]} 30. Ng3 {[%clk 0:01:09.5]} 30... Bg4 {[%clk
0:00:07]} 31. h3 {[%clk 0:01:05.2]} 31... Rxf2 {[%clk 0:00:04.8]} 32. Qxf2
{[%clk 0:01:01.9]} 32... Rf8 {[%clk 0:00:04.2]} 33. Qe3 {[%clk 0:00:54.2]} 33...
Bf5 {[%clk 0:00:04.1]} 34. Rf1 {[%clk 0:00:52.7]} 34... Ne7 {[%clk 0:00:02.1]}
35. Be6 {[%clk 0:00:48.1]} 1-0

[Event "*** SCC Grand Prix: Titled Tuesday Blitz"]
[Site "Chess.com"]
[Date "2020.06.09"]
[Round "4"]
[White "Evgeny81"]
[Black "vladislavkovalev"]
[Result "0-1"]
[WhiteElo "2750"]
[BlackElo "2935"]
[TimeControl "180+1"]
[EndTime "9:38:59 PDT"]
[Termination "vladislavkovalev won on time"]

1. d4 {[%clk 0:03:00.9]} 1... Nf6 {[%clk 0:03:00.5]} 2. Nf3 {[%clk 0:02:59.9]}
2... e6 {[%clk 0:03:00.9]} 3. Bg5 {[%clk 0:02:59.9]} 3... d5 {[%clk 0:02:58.5]}
4. Nbd2 {[%clk 0:02:58]} 4... h6 {[%clk 0:02:58.6]} 5. Bh4 {[%clk 0:02:56.8]}
5... c5 {[%clk 0:02:56]} 6. e3 {[%clk 0:02:55.8]} 6... Nc6 {[%clk 0:02:56.4]} 7.
c3 {[%clk 0:02:55.3]} 7... cxd4 {[%clk 0:02:40.8]} 8. exd4 {[%clk 0:02:54.5]}
8... Be7 {[%clk 0:02:41.2]} 9. Bd3 {[%clk 0:02:53.5]} 9... Nh5 {[%clk
0:02:26.2]} 10. Bxe7 {[%clk 0:02:51]} 10... Qxe7 {[%clk 0:02:27.1]} 11. O-O
{[%clk 0:02:49]} 11... Nf4 {[%clk 0:02:24.3]} 12. Bc2 {[%clk 0:02:48.4]} 12...
O-O {[%clk 0:02:18.4]} 13. g3 {[%clk 0:02:44.4]} 13... Ng6 {[%clk 0:02:03.9]}
14. Re1 {[%clk 0:02:37.1]} 14... f5 {[%clk 0:02:01.8]} 15. Nb3 {[%clk
0:02:32.2]} 15... b6 {[%clk 0:01:50]} 16. Nc1 {[%clk 0:02:26]} 16... Ba6 {[%clk
0:01:35.7]} 17. Bd3 {[%clk 0:02:20.4]} 17... Bxd3 {[%clk 0:01:23.9]} 18. Nxd3
{[%clk 0:02:21.3]} 18... f4 {[%clk 0:01:24.6]} 19. Nfe5 {[%clk 0:02:10.7]} 19...
Ncxe5 {[%clk 0:01:21.9]} 20. Nxe5 {[%clk 0:02:10.3]} 20... Nxe5 {[%clk
0:01:16.6]} 21. Rxe5 {[%clk 0:02:11.2]} 21... Rf6 {[%clk 0:01:14.2]} 22. Qe2
{[%clk 0:02:07.3]} 22... Raf8 {[%clk 0:01:13.1]} 23. Re1 {[%clk 0:01:57.8]}
23... Qf7 {[%clk 0:01:11.5]} 24. g4 {[%clk 0:00:55.3]} 24... f3 {[%clk
0:01:09.1]} 25. Qe3 {[%clk 0:00:55.4]} 25... Rf4 {[%clk 0:01:07.3]} 26. h3
{[%clk 0:00:54.7]} 26... Qf6 {[%clk 0:01:07.1]} 27. Rxe6 {[%clk 0:00:38.2]}
27... Qh4 {[%clk 0:01:06.7]} 28. Kh2 {[%clk 0:00:23]} 28... Rxg4 {[%clk
0:01:07]} 29. Rg1 {[%clk 0:00:18.4]} 29... Rxg1 {[%clk 0:01:07.2]} 30. Kxg1
{[%clk 0:00:18.6]} 30... Qxh3 {[%clk 0:01:07.7]} 31. Rg6 {[%clk 0:00:18.7]}
31... Rf6 {[%clk 0:00:45.5]} 32. Qe8+ {[%clk 0:00:07.4]} 32... Kh7 {[%clk
0:00:45.7]} 33. Rg3 {[%clk 0:00:07.4]} 33... Qf5 {[%clk 0:00:46.2]} 34. Qe7
{[%clk 0:00:04.1]} 34... Rg6 {[%clk 0:00:45.6]} 0-1

[Event "*** SCC Grand Prix: Titled Tuesday Blitz"]
[Site "Chess.com"]
[Date "2020.06.09"]
[Round "4"]
[White "MiroVlasenko"]
[Black "Dmitry_Konenkin"]
[Result "1-0"]
[WhiteElo "2618"]
[BlackElo "2386"]
[TimeControl "180+1"]
[EndTime "9:38:59 PDT"]
[Termination "MiroVlasenko won on time"]

1. d4 {[%clk 0:03:00.9]} 1... d6 {[%clk 0:02:57.4]} 2. Bg5 {[%clk 0:02:59.7]}
2... h6 {[%clk 0:02:55.6]} 3. Bh4 {[%clk 0:02:59.4]} 3... g5 {[%clk 0:02:55.2]}
4. Bg3 {[%clk 0:02:59.7]} 4... Bg7 {[%clk 0:02:55.8]} 5. c3 {[%clk 0:02:59.2]}
5... Bf5 {[%clk 0:02:54.3]} 6. Nd2 {[%clk 0:02:47.3]} 6... Nf6 {[%clk
0:02:51.6]} 7. e3 {[%clk 0:02:36.3]} 7... Nbd7 {[%clk 0:02:46.5]} 8. Bc4 {[%clk
0:02:31]} 8... c6 {[%clk 0:02:30.7]} 9. Qe2 {[%clk 0:02:09.2]} 9... d5 {[%clk
0:01:47.7]} 10. Bd3 {[%clk 0:02:02.5]} 10... Bxd3 {[%clk 0:01:37.1]} 11. Qxd3
{[%clk 0:02:03.4]} 11... Qb6 {[%clk 0:01:36.3]} 12. Rb1 {[%clk 0:02:00.6]} 12...
O-O-O {[%clk 0:01:29.9]} 13. Ngf3 {[%clk 0:01:40]} 13... Nh5 {[%clk 0:01:26.6]}
14. b4 {[%clk 0:01:34.4]} 14... Nxg3 {[%clk 0:01:21.7]} 15. hxg3 {[%clk
0:01:34.4]} 15... Qb5 {[%clk 0:01:03.6]} 16. c4 {[%clk 0:01:11.8]} 16... dxc4
{[%clk 0:00:59.5]} 17. Nxc4 {[%clk 0:01:11.8]} 17... Kb8 {[%clk 0:00:53.6]} 18.
O-O {[%clk 0:01:04.7]} 18... e5 {[%clk 0:00:40.9]} 19. a4 {[%clk 0:00:51.8]}
19... Qxa4 {[%clk 0:00:16.9]} 20. Nd6 {[%clk 0:00:50.6]} 20... exd4 {[%clk
0:00:12]} 21. Nxf7 {[%clk 0:00:44.5]} 21... Nb6 {[%clk 0:00:08.7]} 22. Nxh8
{[%clk 0:00:41.7]} 22... Bxh8 {[%clk 0:00:07.7]} 23. Nxd4 {[%clk 0:00:38.2]}
23... Nd5 {[%clk 0:00:06.9]} 24. b5 {[%clk 0:00:34.8]} 24... c5 {[%clk
0:00:05.6]} 25. Ne6 {[%clk 0:00:28.3]} 25... Rd6 {[%clk 0:00:03.8]} 26. Qh7
{[%clk 0:00:24.1]} 1-0

[Event "*** SCC Grand Prix: Titled Tuesday Blitz"]
[Site "Chess.com"]
[Date "2020.06.09"]
[Round "4"]
[White "Karateloru"]
[Black "joksijoksi"]
[Result "1-0"]
[WhiteElo "2614"]
[BlackElo "2359"]
[TimeControl "180+1"]
[EndTime "9:38:59 PDT"]
[Termination "Karateloru won by resignation"]

1. e4 {[%clk 0:03:00.9]} 1... e6 {[%clk 0:03:00.4]} 2. Nc3 {[%clk 0:02:58.7]}
2... d5 {[%clk 0:03:00.9]} 3. Nf3 {[%clk 0:02:59.3]} 3... Nf6 {[%clk 0:03:00.8]}
4. e5 {[%clk 0:02:58.9]} 4... Nfd7 {[%clk 0:03:01.1]} 5. d4 {[%clk 0:02:59.8]}
5... c5 {[%clk 0:03:01.6]} 6. dxc5 {[%clk 0:03:00.4]} 6... Bxc5 {[%clk
0:03:02.5]} 7. Bd3 {[%clk 0:02:58.9]} 7... Nc6 {[%clk 0:03:03]} 8. Bf4 {[%clk
0:02:58.7]} 8... h6 {[%clk 0:03:03]} 9. h4 {[%clk 0:02:58.3]} 9... a6 {[%clk
0:03:02.5]} 10. a3 {[%clk 0:02:57.5]} 10... b5 {[%clk 0:03:02.2]} 11. O-O {[%clk
0:02:50.5]} 11... Bb7 {[%clk 0:02:53.3]} 12. Bg3 {[%clk 0:02:49.6]} 12... Rc8
{[%clk 0:02:47.2]} 13. Qd2 {[%clk 0:02:46.1]} 13... Nd4 {[%clk 0:02:37.7]} 14.
Nxd4 {[%clk 0:02:20.7]} 14... Bxd4 {[%clk 0:02:38.6]} 15. Bxb5 {[%clk
0:02:20.9]} 15... Bxc3 {[%clk 0:02:32.8]} 16. Bxd7+ {[%clk 0:02:21]} 16... Qxd7
{[%clk 0:02:31.9]} 17. bxc3 {[%clk 0:02:21.9]} 17... Bc6 {[%clk 0:02:28.1]} 18.
Rfe1 {[%clk 0:02:19.9]} 18... Bb5 {[%clk 0:02:27.5]} 19. Re3 {[%clk 0:02:17.5]}
19... O-O {[%clk 0:02:26.9]} 20. Bf4 {[%clk 0:02:12.9]} 20... Rfd8 {[%clk
0:02:18.6]} 21. Rg3 {[%clk 0:02:12.8]} 21... Kh7 {[%clk 0:02:12.4]} 22. Qd1
{[%clk 0:01:45.7]} 22... d4 {[%clk 0:02:03.8]} 23. Qg4 {[%clk 0:01:44.5]} 23...
Rg8 {[%clk 0:01:59]} 24. Rd1 {[%clk 0:01:36.8]} 24... Qe7 {[%clk 0:01:43.8]} 25.
cxd4 {[%clk 0:01:35.7]} 25... Rxc2 {[%clk 0:01:42.1]} 26. Bxh6 {[%clk
0:01:33.2]} 26... g6 {[%clk 0:01:09.9]} 27. Bg5 {[%clk 0:01:29]} 27... Qf8
{[%clk 0:00:47.2]} 28. h5 {[%clk 0:01:26.8]} 28... Be2 {[%clk 0:00:41.9]} 29.
hxg6+ {[%clk 0:01:18.1]} 29... fxg6 {[%clk 0:00:28]} 30. Qh4+ {[%clk 0:01:14.6]}
30... Bh5 {[%clk 0:00:25.1]} 31. Rf3 {[%clk 0:01:10.7]} 31... Qg7 {[%clk
0:00:15.9]} 32. g4 {[%clk 0:01:07.2]} 32... Rf8 {[%clk 0:00:15.6]} 33. Rxf8
{[%clk 0:01:04.9]} 33... Qxf8 {[%clk 0:00:15.8]} 34. gxh5 {[%clk 0:01:05]} 34...
Qf3 {[%clk 0:00:14.1]} 35. hxg6+ {[%clk 0:01:03.5]} 35... Kxg6 {[%clk
0:00:11.5]} 36. Qh6+ {[%clk 0:01:02.8]} 36... Kf5 {[%clk 0:00:12]} 37. Qf6+
{[%clk 0:01:02.9]} 37... Kg4 {[%clk 0:00:11.2]} 38. Qxf3+ {[%clk 0:01:03.4]}
38... Kxf3 {[%clk 0:00:12.1]} 39. d5 {[%clk 0:01:02.4]} 39... exd5 {[%clk
0:00:04.1]} 40. e6 {[%clk 0:01:02.4]} 40... Rxf2 {[%clk 0:00:04.2]} 41. Rf1
{[%clk 0:01:02.5]} 41... Rxf1+ {[%clk 0:00:04.2]} 42. Kxf1 {[%clk 0:01:02.6]}
1-0

[Event "*** SCC Grand Prix: Titled Tuesday Blitz"]
[Site "Chess.com"]
[Date "2020.06.09"]
[Round "4"]
[White "Nara_Kh"]
[Black "Bhagya_2312"]
[Result "0-1"]
[WhiteElo "2290"]
[BlackElo "2138"]
[TimeControl "180+1"]
[EndTime "9:39:01 PDT"]
[Termination "Bhagya_2312 won on time"]

1. e4 {[%clk 0:03:00.9]} 1... c6 {[%clk 0:02:59.9]} 2. Nc3 {[%clk 0:03:00]} 2...
d5 {[%clk 0:02:59.7]} 3. Nf3 {[%clk 0:03:00]} 3... Bg4 {[%clk 0:02:56.9]} 4. h3
{[%clk 0:02:59.6]} 4... Bxf3 {[%clk 0:02:56.9]} 5. Qxf3 {[%clk 0:02:59.8]} 5...
e6 {[%clk 0:02:56.7]} 6. d3 {[%clk 0:02:59.2]} 6... Nf6 {[%clk 0:02:56.5]} 7.
Bd2 {[%clk 0:02:54.6]} 7... Nbd7 {[%clk 0:02:36.6]} 8. O-O-O {[%clk 0:02:50.6]}
8... b5 {[%clk 0:02:29.1]} 9. exd5 {[%clk 0:02:32.6]} 9... Nxd5 {[%clk
0:02:23.4]} 10. g4 {[%clk 0:02:16.4]} 10... b4 {[%clk 0:02:09.1]} 11. Ne4 {[%clk
0:02:12]} 11... a5 {[%clk 0:01:57.4]} 12. Qg3 {[%clk 0:01:51.2]} 12... Qb8
{[%clk 0:01:53.7]} 13. Qxb8+ {[%clk 0:01:43.8]} 13... Rxb8 {[%clk 0:01:52.1]}
14. Bg2 {[%clk 0:01:44.4]} 14... Be7 {[%clk 0:01:50.7]} 15. f4 {[%clk
0:01:41.2]} 15... a4 {[%clk 0:01:34.3]} 16. d4 {[%clk 0:00:48.1]} 16... O-O
{[%clk 0:01:25.2]} 17. f5 {[%clk 0:00:32.2]} 17... exf5 {[%clk 0:01:12.6]} 18.
gxf5 {[%clk 0:00:33.1]} 18... Rfc8 {[%clk 0:01:05.1]} 19. Rhe1 {[%clk
0:00:24.4]} 19... Bf8 {[%clk 0:00:58.6]} 20. h4 {[%clk 0:00:20]} 20... b3 {[%clk
0:00:51.9]} 21. axb3 {[%clk 0:00:18.8]} 21... axb3 {[%clk 0:00:51.3]} 22. c3
{[%clk 0:00:12.8]} 22... Ra8 {[%clk 0:00:50.4]} 23. Be3 {[%clk 0:00:07.7]} 23...
Ra1+ {[%clk 0:00:48.2]} 24. Kd2 {[%clk 0:00:07.9]} 24... Ra2 {[%clk 0:00:47.9]}
25. Rb1 {[%clk 0:00:07]} 25... Ba3 {[%clk 0:00:46]} 26. c4 {[%clk 0:00:04.9]}
26... Nxe3 {[%clk 0:00:42.9]} 27. Kxe3 {[%clk 0:00:05.1]} 27... Bxb2 {[%clk
0:00:41.3]} 28. Nd6 {[%clk 0:00:03.3]} 28... Rb8 {[%clk 0:00:36.9]} 29. Bxc6
{[%clk 0:00:02.8]} 29... Nf6 {[%clk 0:00:34.8]} 0-1

[Event "*** SCC Grand Prix: Titled Tuesday Blitz"]
[Site "Chess.com"]
[Date "2020.06.09"]
[Round "4"]
[White "Sueetin"]
[Black "goldenpuppy"]
[Result "0-1"]
[WhiteElo "2377"]
[BlackElo "2209"]
[TimeControl "180+1"]
[EndTime "9:39:02 PDT"]
[Termination "goldenpuppy won on time"]

1. d4 {[%clk 0:03:00.9]} 1... Nf6 {[%clk 0:02:58.6]} 2. c4 {[%clk 0:03:00.8]}
2... e6 {[%clk 0:02:58.6]} 3. Nf3 {[%clk 0:03:00.1]} 3... c5 {[%clk 0:02:58.4]}
4. d5 {[%clk 0:02:59.7]} 4... exd5 {[%clk 0:02:59.3]} 5. cxd5 {[%clk 0:02:59.2]}
5... d6 {[%clk 0:02:59.8]} 6. Nc3 {[%clk 0:02:59.6]} 6... g6 {[%clk 0:02:59.9]}
7. Bf4 {[%clk 0:03:00.1]} 7... a6 {[%clk 0:02:59.6]} 8. a4 {[%clk 0:02:56.5]}
8... Bg7 {[%clk 0:02:59.8]} 9. e3 {[%clk 0:02:56.5]} 9... O-O {[%clk 0:02:59.8]}
10. Be2 {[%clk 0:02:56.4]} 10... Re8 {[%clk 0:02:58]} 11. O-O {[%clk 0:02:56]}
11... Ne4 {[%clk 0:02:58.4]} 12. Nxe4 {[%clk 0:02:45.2]} 12... Rxe4 {[%clk
0:02:59.3]} 13. Nd2 {[%clk 0:02:45.6]} 13... Re8 {[%clk 0:02:58.8]} 14. Nc4
{[%clk 0:02:42.7]} 14... Bf8 {[%clk 0:02:56.3]} 15. a5 {[%clk 0:02:39.7]} 15...
Bf5 {[%clk 0:02:40.8]} 16. g4 {[%clk 0:02:33.8]} 16... Bc8 {[%clk 0:02:17.1]}
17. Bg3 {[%clk 0:02:21.2]} 17... Qf6 {[%clk 0:02:08.3]} 18. Bd3 {[%clk
0:02:16.3]} 18... Nd7 {[%clk 0:02:07.3]} 19. f4 {[%clk 0:02:13.4]} 19... Rb8
{[%clk 0:01:42.6]} 20. e4 {[%clk 0:02:10.5]} 20... b5 {[%clk 0:01:25.9]} 21. e5
{[%clk 0:01:59.9]} 21... Qg7 {[%clk 0:01:25.6]} 22. Nxd6 {[%clk 0:01:51.2]}
22... Bxd6 {[%clk 0:01:24.9]} 23. exd6 {[%clk 0:01:52.1]} 23... Qd4+ {[%clk
0:01:24.8]} 24. Rf2 {[%clk 0:01:39]} 24... Qxd5 {[%clk 0:01:23.3]} 25. Bf1
{[%clk 0:01:02.6]} 25... Bb7 {[%clk 0:01:21.9]} 26. Qxd5 {[%clk 0:01:00.8]}
26... Bxd5 {[%clk 0:01:22.8]} 27. Rd1 {[%clk 0:00:51]} 27... Bc6 {[%clk
0:01:22.2]} 28. Rfd2 {[%clk 0:00:35.6]} 28... Re3 {[%clk 0:01:20]} 29. Bf2
{[%clk 0:00:32.1]} 29... Rb3 {[%clk 0:01:19.1]} 30. Re1 {[%clk 0:00:27.3]} 30...
Kf8 {[%clk 0:01:18.6]} 31. Re7 {[%clk 0:00:26.3]} 31... Re8 {[%clk 0:01:18.6]}
32. Bh4 {[%clk 0:00:26.4]} 32... Rxe7 {[%clk 0:01:14.5]} 33. dxe7+ {[%clk
0:00:26.4]} 33... Ke8 {[%clk 0:01:14.7]} 34. Bg2 {[%clk 0:00:22.7]} 34... Bxg2
{[%clk 0:01:07.3]} 35. Kxg2 {[%clk 0:00:23.6]} 35... f6 {[%clk 0:01:07]} 36. f5
{[%clk 0:00:19.3]} 36... g5 {[%clk 0:01:06]} 37. Bg3 {[%clk 0:00:18]} 37... Kxe7
{[%clk 0:01:06.2]} 38. Bd6+ {[%clk 0:00:14.6]} 38... Ke8 {[%clk 0:01:06.2]} 39.
Re2+ {[%clk 0:00:14.3]} 39... Kd8 {[%clk 0:01:06.6]} 40. Be7+ {[%clk 0:00:12.8]}
40... Kc7 {[%clk 0:01:06.1]} 41. Rd2 {[%clk 0:00:06.1]} 41... c4 {[%clk
0:01:05.4]} 42. h3 {[%clk 0:00:02.1]} 42... c3 {[%clk 0:01:02.2]} 43. bxc3
{[%clk 0:00:01.6]} 43... Rxc3 {[%clk 0:01:03.1]} 0-1

[Event "*** SCC Grand Prix: Titled Tuesday Blitz"]
[Site "Chess.com"]
[Date "2020.06.09"]
[Round "4"]
[White "quesfr"]
[Black "SoltaniciR"]
[Result "0-1"]
[WhiteElo "2250"]
[BlackElo "2488"]
[TimeControl "180+1"]
[EndTime "9:39:04 PDT"]
[Termination "SoltaniciR won on time"]

1. e4 {[%clk 0:03:00.9]} 1... c5 {[%clk 0:02:55.6]} 2. Nf3 {[%clk 0:03:00.4]}
2... d6 {[%clk 0:02:55.8]} 3. d4 {[%clk 0:02:59.9]} 3... cxd4 {[%clk 0:02:56.7]}
4. Nxd4 {[%clk 0:03:00.6]} 4... Nf6 {[%clk 0:02:57.3]} 5. Nc3 {[%clk 0:03:00.7]}
5... a6 {[%clk 0:02:57.7]} 6. Nb3 {[%clk 0:02:59.4]} 6... Nbd7 {[%clk
0:02:48.6]} 7. a4 {[%clk 0:02:59]} 7... b6 {[%clk 0:02:44.7]} 8. g4 {[%clk
0:02:46.7]} 8... Bb7 {[%clk 0:02:42.4]} 9. Bg2 {[%clk 0:02:46.8]} 9... h6 {[%clk
0:02:40.6]} 10. f4 {[%clk 0:02:40.9]} 10... e5 {[%clk 0:02:33.9]} 11. g5 {[%clk
0:02:23.6]} 11... hxg5 {[%clk 0:02:32.3]} 12. fxg5 {[%clk 0:02:23.9]} 12... Nh5
{[%clk 0:02:32.3]} 13. a5 {[%clk 0:01:53.8]} 13... g6 {[%clk 0:02:15.8]} 14. Nd5
{[%clk 0:01:49.3]} 14... Rc8 {[%clk 0:02:04]} 15. Be3 {[%clk 0:01:42.1]} 15...
b5 {[%clk 0:01:59]} 16. c3 {[%clk 0:01:31.5]} 16... Be7 {[%clk 0:01:53.3]} 17.
h4 {[%clk 0:01:28.5]} 17... Bxd5 {[%clk 0:01:34.2]} 18. Qxd5 {[%clk 0:01:25.4]}
18... Qc7 {[%clk 0:01:34]} 19. Nd2 {[%clk 0:00:39.6]} 19... Nc5 {[%clk
0:01:23.8]} 20. O-O {[%clk 0:00:34.9]} 20... O-O {[%clk 0:01:22.9]} 21. Bf3
{[%clk 0:00:24.8]} 21... Ng7 {[%clk 0:01:22.2]} 22. h5 {[%clk 0:00:25]} 22...
Nxh5 {[%clk 0:01:18.1]} 23. Bxh5 {[%clk 0:00:24.5]} 23... gxh5 {[%clk 0:01:18]}
24. g6 {[%clk 0:00:24.7]} 24... Qd7 {[%clk 0:01:10.6]} 25. gxf7+ {[%clk
0:00:18.3]} 25... Kh7 {[%clk 0:01:08.5]} 26. Rf5 {[%clk 0:00:17.9]} 26... Qe6
{[%clk 0:00:57.3]} 27. Rxh5+ {[%clk 0:00:15.5]} 27... Kg6 {[%clk 0:00:55.7]} 28.
Rh6+ {[%clk 0:00:13]} 28... Kxf7 {[%clk 0:00:54]} 29. Rxe6 {[%clk 0:00:13]}
29... Nxe6 {[%clk 0:00:54.9]} 30. Rf1+ {[%clk 0:00:12.7]} 30... Bf6 {[%clk
0:00:54.4]} 31. Nf3 {[%clk 0:00:07.5]} 31... Rg8+ {[%clk 0:00:53.6]} 32. Kf2
{[%clk 0:00:07.2]} 32... Ke7 {[%clk 0:00:50.2]} 33. Ke1 {[%clk 0:00:06.7]} 33...
Nc7 {[%clk 0:00:45.7]} 34. Qb7 {[%clk 0:00:05.1]} 34... Kd7 {[%clk 0:00:45.7]}
35. Nd2 {[%clk 0:00:02.5]} 35... Rb8 {[%clk 0:00:45.6]} 36. Qa7 {[%clk
0:00:01.9]} 36... Bh4+ {[%clk 0:00:46.1]} 37. Kd1 {[%clk 0:00:01.2]} 37... Be7
{[%clk 0:00:46.1]} 0-1